[Event "Early-Titled-Tuesday-Blitz-June-18-2024"]
[Site "Chess.com"]
[Date "2024.06.18"]
[Round "1"]
[White "GM-2024-GM"]
[Black "SharapovEvgeny"]
[Result "1-0"]
[WhiteElo "2293"]
[BlackElo "2602"]
[TimeControl "180+1"]
[EndTime "8:04:10 PDT"]
[Termination "GM-2024-GM won by resignation"]

1. e4 {[%clk 0:02:57.9]} 1... c5 {[%clk 0:02:59.8]} 2. Nf3 {[%clk 0:02:57.8]}
2... d6 {[%clk 0:03:00.1]} 3. d4 {[%clk 0:02:57.8]} 3... cxd4 {[%clk 0:03:00.5]}
4. Nxd4 {[%clk 0:02:58.7]} 4... Nf6 {[%clk 0:03:00.7]} 5. Nc3 {[%clk 0:02:59.1]}
5... Nc6 {[%clk 0:03:01.3]} 6. Bg5 {[%clk 0:02:58.5]} 6... e6 {[%clk 0:03:01.7]}
7. Qd2 {[%clk 0:02:56.3]} 7... Be7 {[%clk 0:03:02.2]} 8. O-O-O {[%clk
0:02:52.7]} 8... O-O {[%clk 0:03:02.3]} 9. f4 {[%clk 0:02:48.9]} 9... Nxd4
{[%clk 0:03:02]} 10. Qxd4 {[%clk 0:02:48.8]} 10... Qa5 {[%clk 0:03:02.7]} 11.
Qd2 {[%clk 0:02:22.2]} 11... h6 {[%clk 0:02:59.8]} 12. h4 {[%clk 0:02:21.8]}
12... Nxe4 {[%clk 0:02:57.8]} 13. Nxe4 {[%clk 0:02:17.2]} 13... Qxd2+ {[%clk
0:02:57.4]} 14. Rxd2 {[%clk 0:02:13.9]} 14... hxg5 {[%clk 0:02:57.4]} 15. hxg5
{[%clk 0:02:00.7]} 15... d5 {[%clk 0:02:50.6]} 16. g3 {[%clk 0:01:32.9]} 16...
f5 {[%clk 0:02:29.9]} 17. g6 {[%clk 0:01:11.9]} 17... Rf6 {[%clk 0:02:28.4]} 18.
Nxf6+ {[%clk 0:00:55.9]} 18... Bxf6 {[%clk 0:02:28.2]} 19. Rdh2 {[%clk
0:00:53.3]} 19... Kf8 {[%clk 0:02:28.3]} 20. Rh8+ {[%clk 0:00:52.3]} 20... Ke7
{[%clk 0:02:28.5]} 21. Rg8 {[%clk 0:00:45.2]} 21... Kd7 {[%clk 0:02:27.1]} 22.
Rhh8 {[%clk 0:00:44.7]} 22... Kc7 {[%clk 0:02:27.2]} 23. Rf8 {[%clk 0:00:40.4]}
23... a6 {[%clk 0:02:23.6]} 24. Rxf6 {[%clk 0:00:37.7]} 24... gxf6 {[%clk
0:02:23.4]} 25. g7 {[%clk 0:00:37.6]} 1-0

[Event "Early-Titled-Tuesday-Blitz-June-18-2024"]
[Site "Chess.com"]
[Date "2024.06.18"]
[Round "1"]
[White "Kacparov"]
[Black "Squirlolz"]
[Result "1-0"]
[WhiteElo "2892"]
[BlackElo "2502"]
[TimeControl "180+1"]
[EndTime "8:04:13 PDT"]
[Termination "Kacparov won by resignation"]

1. e4 {[%clk 0:03:00.9]} 1... c5 {[%clk 0:02:57.3]} 2. Nf3 {[%clk 0:03:00.8]}
2... d6 {[%clk 0:02:57]} 3. d4 {[%clk 0:03:01.1]} 3... cxd4 {[%clk 0:02:57.9]}
4. Nxd4 {[%clk 0:03:01.7]} 4... Nf6 {[%clk 0:02:58.3]} 5. f3 {[%clk 0:03:02.2]}
5... Nc6 {[%clk 0:02:47.4]} 6. c4 {[%clk 0:03:02.1]} 6... e6 {[%clk 0:02:42.2]}
7. Nc3 {[%clk 0:03:01.9]} 7... Be7 {[%clk 0:02:42.8]} 8. Be3 {[%clk 0:03:01.4]}
8... O-O {[%clk 0:02:43.3]} 9. Nc2 {[%clk 0:02:57.7]} 9... b6 {[%clk 0:02:42.3]}
10. Be2 {[%clk 0:02:56.7]} 10... Bb7 {[%clk 0:02:42.5]} 11. O-O {[%clk
0:02:56.8]} 11... a6 {[%clk 0:02:42.5]} 12. Qd2 {[%clk 0:02:54.5]} 12... Re8
{[%clk 0:02:35.1]} 13. Rfd1 {[%clk 0:02:51.7]} 13... Qb8 {[%clk 0:02:35.3]} 14.
Bxb6 {[%clk 0:02:44.2]} 14... a5 {[%clk 0:02:27.1]} 15. Bf2 {[%clk 0:02:40.7]}
15... Ba6 {[%clk 0:02:26.1]} 16. Rab1 {[%clk 0:02:34.5]} 16... Nb4 {[%clk
0:02:23.5]} 17. Nd4 {[%clk 0:02:30]} 17... d5 {[%clk 0:02:22.8]} 18. a3 {[%clk
0:02:21.5]} 18... dxe4 {[%clk 0:02:21.4]} 19. axb4 {[%clk 0:02:20.4]} 19... exf3
{[%clk 0:02:21]} 20. Bxf3 {[%clk 0:02:17.8]} 20... axb4 {[%clk 0:02:21.1]} 21.
Ncb5 {[%clk 0:02:09.9]} 21... e5 {[%clk 0:02:11.1]} 22. Nc6 {[%clk 0:02:07.6]}
22... Qb7 {[%clk 0:01:57.8]} 23. Nxe7+ {[%clk 0:02:04.8]} 23... Qxe7 {[%clk
0:01:58.7]} 24. Bxa8 {[%clk 0:02:04.2]} 24... Rxa8 {[%clk 0:01:59.6]} 25. Qd6
{[%clk 0:02:01.7]} 25... Qb7 {[%clk 0:01:55.5]} 26. Nc7 {[%clk 0:01:53.1]} 26...
Ne4 {[%clk 0:01:53.2]} 27. Qd5 {[%clk 0:01:49.2]} 27... Nxf2 {[%clk 0:01:24.6]}
28. Nxa8 {[%clk 0:01:36.3]} 1-0

[Event "Early-Titled-Tuesday-Blitz-June-18-2024"]
[Site "Chess.com"]
[Date "2024.06.18"]
[Round "1"]
[White "ClauAmura"]
[Black "Revan_2002"]
[Result "0-1"]
[WhiteElo "2398"]
[BlackElo "2719"]
[TimeControl "180+1"]
[EndTime "8:04:21 PDT"]
[Termination "Revan_2002 won by resignation"]

1. d4 {[%clk 0:03:00.9]} 1... d5 {[%clk 0:02:55.3]} 2. Bg5 {[%clk 0:03:01.1]}
2... Nf6 {[%clk 0:02:53]} 3. Bxf6 {[%clk 0:03:00.4]} 3... exf6 {[%clk
0:02:53.9]} 4. e3 {[%clk 0:02:58]} 4... Bd6 {[%clk 0:02:52.9]} 5. c4 {[%clk
0:02:57.4]} 5... dxc4 {[%clk 0:02:52.9]} 6. Bxc4 {[%clk 0:02:56]} 6... c6 {[%clk
0:02:53.3]} 7. Nc3 {[%clk 0:02:55.4]} 7... O-O {[%clk 0:02:52.7]} 8. h3 {[%clk
0:02:53.7]} 8... f5 {[%clk 0:02:52.4]} 9. Nf3 {[%clk 0:02:51.7]} 9... Qe7 {[%clk
0:02:52.2]} 10. O-O {[%clk 0:02:51]} 10... Nd7 {[%clk 0:02:52.8]} 11. a3 {[%clk
0:02:49.6]} 11... Nf6 {[%clk 0:02:53.3]} 12. b4 {[%clk 0:02:48.8]} 12... b5
{[%clk 0:02:51.4]} 13. Bb3 {[%clk 0:02:44.1]} 13... a5 {[%clk 0:02:51.5]} 14.
bxa5 {[%clk 0:02:41.7]} 14... Rxa5 {[%clk 0:02:52.4]} 15. a4 {[%clk 0:02:41.5]}
15... b4 {[%clk 0:02:50.6]} 16. Ne2 {[%clk 0:02:40.5]} 16... Ba6 {[%clk
0:02:51]} 17. Re1 {[%clk 0:02:39.1]} 17... Ne4 {[%clk 0:02:51.6]} 18. Nd2 {[%clk
0:02:34]} 18... Qh4 {[%clk 0:02:24.5]} 19. Nxe4 {[%clk 0:02:25.2]} 19... fxe4
{[%clk 0:02:25.4]} 20. Qd2 {[%clk 0:02:12.9]} 20... Rg5 {[%clk 0:02:19.6]} 21.
Nf4 {[%clk 0:01:59.3]} 21... Bc8 {[%clk 0:02:19.2]} 22. Kf1 {[%clk 0:01:49.7]}
22... Bxf4 {[%clk 0:01:36.3]} 23. exf4 {[%clk 0:01:48.8]} 23... Rxg2 {[%clk
0:01:36.9]} 24. Kxg2 {[%clk 0:01:17.4]} 24... Bxh3+ {[%clk 0:01:35.7]} 0-1

[Event "Early-Titled-Tuesday-Blitz-June-18-2024"]
[Site "Chess.com"]
[Date "2024.06.18"]
[Round "1"]
[White "Karateloru"]
[Black "NovakRatko"]
[Result "1-0"]
[WhiteElo "2769"]
[BlackElo "2431"]
[TimeControl "180+1"]
[EndTime "8:04:26 PDT"]
[Termination "Karateloru won by resignation"]

1. e4 {[%clk 0:02:59.4]} 1... d5 {[%clk 0:02:59.9]} 2. exd5 {[%clk 0:02:58.7]}
2... c6 {[%clk 0:03:00.6]} 3. Nc3 {[%clk 0:02:59.3]} 3... cxd5 {[%clk
0:03:00.2]} 4. Bb5+ {[%clk 0:02:56.6]} 4... Nc6 {[%clk 0:03:00.2]} 5. d4 {[%clk
0:02:55.9]} 5... f6 {[%clk 0:03:00]} 6. Qh5+ {[%clk 0:02:53.5]} 6... g6 {[%clk
0:02:59.4]} 7. Qxd5 {[%clk 0:02:53.4]} 7... Bd7 {[%clk 0:02:36.1]} 8. Bc4 {[%clk
0:02:42.9]} 8... e6 {[%clk 0:02:34.8]} 9. Qe4 {[%clk 0:02:42.3]} 9... f5 {[%clk
0:02:30.1]} 10. Qe3 {[%clk 0:02:34.8]} 10... Qe7 {[%clk 0:02:27.4]} 11. Nf3
{[%clk 0:02:32]} 11... Bg7 {[%clk 0:02:26.6]} 12. d5 {[%clk 0:02:24.2]} 12...
Bxc3+ {[%clk 0:02:17.2]} 13. Qxc3 {[%clk 0:01:56.6]} 13... exd5+ {[%clk
0:02:15]} 14. Be2 {[%clk 0:01:57.1]} 14... Nf6 {[%clk 0:02:11.6]} 15. Bg5 {[%clk
0:01:56.3]} 15... O-O {[%clk 0:02:11.4]} 16. O-O {[%clk 0:01:49.7]} 16... Ne4
{[%clk 0:01:57.9]} 17. Bxe7 {[%clk 0:01:48.9]} 17... Nxc3 {[%clk 0:01:57.7]} 18.
bxc3 {[%clk 0:01:45.9]} 18... Nxe7 {[%clk 0:01:57.3]} 19. Rab1 {[%clk 0:01:40]}
19... b6 {[%clk 0:01:57.1]} 20. Rfd1 {[%clk 0:01:36.8]} 20... Rac8 {[%clk
0:01:55.7]} 21. c4 {[%clk 0:01:36.9]} 21... Be6 {[%clk 0:01:48.9]} 22. Ng5
{[%clk 0:01:35.2]} 22... Bf7 {[%clk 0:01:39.2]} 23. Nxf7 {[%clk 0:01:32.8]}
23... Kg7 {[%clk 0:01:38.2]} 24. Nd6 {[%clk 0:01:31.2]} 1-0

[Event "Early-Titled-Tuesday-Blitz-June-18-2024"]
[Site "Chess.com"]
[Date "2024.06.18"]
[Round "1"]
[White "Nuvas"]
[Black "Hudijegszid"]
[Result "0-1"]
[WhiteElo "2841"]
[BlackElo "2503"]
[TimeControl "180+1"]
[EndTime "8:04:31 PDT"]
[Termination "Hudijegszid won by resignation"]

1. d4 {[%clk 0:03:00.9]} 1... d5 {[%clk 0:03:00]} 2. c4 {[%clk 0:02:59.9]} 2...
e6 {[%clk 0:03:00.5]} 3. Nc3 {[%clk 0:03:00.4]} 3... a6 {[%clk 0:03:00.8]} 4.
cxd5 {[%clk 0:02:59.7]} 4... exd5 {[%clk 0:03:01.7]} 5. Qb3 {[%clk 0:03:00.1]}
5... Nf6 {[%clk 0:03:01.2]} 6. Bg5 {[%clk 0:02:58.3]} 6... c5 {[%clk 0:03:01.6]}
7. Bxf6 {[%clk 0:02:50.5]} 7... gxf6 {[%clk 0:03:01]} 8. dxc5 {[%clk 0:02:38.3]}
8... d4 {[%clk 0:03:00.8]} 9. O-O-O {[%clk 0:02:38.1]} 9... Nc6 {[%clk
0:02:53.7]} 10. e3 {[%clk 0:02:35.5]} 10... Bxc5 {[%clk 0:02:51.6]} 11. Nf3
{[%clk 0:02:31.6]} 11... Be6 {[%clk 0:02:43.5]} 12. Qxb7 {[%clk 0:02:15.2]}
12... Rc8 {[%clk 0:02:11.6]} 13. Bxa6 {[%clk 0:01:58.7]} 13... O-O {[%clk
0:02:09.3]} 14. exd4 {[%clk 0:01:46.5]} 14... Nxd4 {[%clk 0:02:07.2]} 15. Qe4
{[%clk 0:01:42.9]} 15... Qa5 {[%clk 0:02:03]} 16. Bxc8 {[%clk 0:01:32.3]} 16...
Rxc8 {[%clk 0:02:03.9]} 17. Nxd4 {[%clk 0:01:31.8]} 17... Ba3 {[%clk 0:01:52.1]}
18. Qc2 {[%clk 0:01:01.7]} 18... Rxc3 {[%clk 0:01:51.5]} 19. bxa3 {[%clk
0:00:59.4]} 19... Qxa3+ {[%clk 0:01:48.5]} 20. Kd2 {[%clk 0:00:59.6]} 20...
Rxc2+ {[%clk 0:01:45.1]} 21. Nxc2 {[%clk 0:01:00.5]} 21... Qxa2 {[%clk
0:01:42.7]} 22. Rc1 {[%clk 0:00:59.5]} 22... Bf5 {[%clk 0:01:39.2]} 23. g4
{[%clk 0:00:59.6]} 23... Bxc2 {[%clk 0:01:31.5]} 0-1

[Event "Early-Titled-Tuesday-Blitz-June-18-2024"]
[Site "Chess.com"]
[Date "2024.06.18"]
[Round "1"]
[White "SilverCityIndigo"]
[Black "Abund"]
[Result "0-1"]
[WhiteElo "2419"]
[BlackElo "2746"]
[TimeControl "180+1"]
[EndTime "8:04:31 PDT"]
[Termination "Abund won by resignation"]

1. d4 {[%clk 0:02:58.6]} 1... d5 {[%clk 0:02:59.3]} 2. Nf3 {[%clk 0:02:58.8]}
2... Nf6 {[%clk 0:02:59.4]} 3. c4 {[%clk 0:02:59.5]} 3... e6 {[%clk 0:02:59.8]}
4. Nc3 {[%clk 0:02:59.3]} 4... a6 {[%clk 0:03:00]} 5. cxd5 {[%clk 0:02:57.5]}
5... exd5 {[%clk 0:03:00.9]} 6. Bg5 {[%clk 0:02:57.5]} 6... Be6 {[%clk
0:03:00.8]} 7. e3 {[%clk 0:02:56.6]} 7... Nbd7 {[%clk 0:03:01.3]} 8. Rc1 {[%clk
0:02:55.8]} 8... Bd6 {[%clk 0:03:01]} 9. Be2 {[%clk 0:02:56]} 9... c6 {[%clk
0:03:01.4]} 10. O-O {[%clk 0:02:56.1]} 10... O-O {[%clk 0:03:01.7]} 11. a3
{[%clk 0:02:54]} 11... Qb8 {[%clk 0:02:52.8]} 12. Bh4 {[%clk 0:02:52.7]} 12...
Re8 {[%clk 0:02:49.4]} 13. Bg3 {[%clk 0:02:52.3]} 13... Bxg3 {[%clk 0:02:48.2]}
14. hxg3 {[%clk 0:02:52.7]} 14... Bf5 {[%clk 0:02:48.8]} 15. Nh4 {[%clk
0:02:50.3]} 15... Bg6 {[%clk 0:02:47.5]} 16. Nxg6 {[%clk 0:02:42.7]} 16... hxg6
{[%clk 0:02:47.6]} 17. Qb3 {[%clk 0:02:40.3]} 17... Re6 {[%clk 0:02:39.6]} 18.
Na4 {[%clk 0:02:34.5]} 18... Ne4 {[%clk 0:02:36.9]} 19. Bf3 {[%clk 0:02:29.4]}
19... Nd2 {[%clk 0:02:33.4]} 20. Qd3 {[%clk 0:02:21.1]} 20... Nxf1 {[%clk
0:02:31.9]} 21. Kxf1 {[%clk 0:02:22]} 21... Qd6 {[%clk 0:02:27.6]} 22. b4 {[%clk
0:02:03.6]} 22... Nf6 {[%clk 0:02:25]} 23. Nc5 {[%clk 0:02:01.9]} 23... Re7
{[%clk 0:02:25.2]} 24. a4 {[%clk 0:01:55.4]} 24... g5 {[%clk 0:02:20.9]} 25. a5
{[%clk 0:01:41.8]} 25... g6 {[%clk 0:02:20.6]} 26. Bd1 {[%clk 0:01:37.2]} 26...
Kg7 {[%clk 0:02:20.1]} 27. Ke1 {[%clk 0:01:35.7]} 27... Rh8 {[%clk 0:02:17.6]}
28. Kd2 {[%clk 0:01:30.1]} 28... Ne4+ {[%clk 0:02:11.9]} 29. Nxe4 {[%clk
0:01:19.9]} 29... Rxe4 {[%clk 0:02:07.5]} 30. Bf3 {[%clk 0:01:18.1]} 30... Qxb4+
{[%clk 0:02:06.8]} 31. Qc3 {[%clk 0:01:17.3]} 31... Qxc3+ {[%clk 0:02:06.8]} 32.
Rxc3 {[%clk 0:01:17.1]} 32... Re7 {[%clk 0:02:07.5]} 33. g4 {[%clk 0:01:08.7]}
33... Rh1 {[%clk 0:02:07.2]} 34. Rb3 {[%clk 0:01:08.3]} 34... Ra1 {[%clk
0:02:07.2]} 35. Be2 {[%clk 0:00:59.6]} 35... Ra2+ {[%clk 0:02:05.9]} 36. Kd1
{[%clk 0:00:58.9]} 36... Rxa5 {[%clk 0:02:06.6]} 0-1

[Event "Early-Titled-Tuesday-Blitz-June-18-2024"]
[Site "Chess.com"]
[Date "2024.06.18"]
[Round "1"]
[White "Stanbad1"]
[Black "Rdeux42"]
[Result "1-0"]
[WhiteElo "2739"]
[BlackElo "2415"]
[TimeControl "180+1"]
[EndTime "8:04:31 PDT"]
[Termination "Stanbad1 won by resignation"]

1. d4 {[%clk 0:02:59.6]} 1... d5 {[%clk 0:03:00]} 2. Nc3 {[%clk 0:02:58.5]} 2...
Nf6 {[%clk 0:02:59.3]} 3. Bf4 {[%clk 0:02:57.9]} 3... a6 {[%clk 0:02:58.9]} 4.
e3 {[%clk 0:02:55.5]} 4... Bf5 {[%clk 0:02:57.9]} 5. Nf3 {[%clk 0:02:51.9]} 5...
e6 {[%clk 0:02:56.8]} 6. Ne5 {[%clk 0:02:52.6]} 6... h6 {[%clk 0:02:46.6]} 7. g4
{[%clk 0:02:50.4]} 7... Bh7 {[%clk 0:02:47.1]} 8. h4 {[%clk 0:02:50.5]} 8...
Nbd7 {[%clk 0:02:44.5]} 9. g5 {[%clk 0:02:50.5]} 9... Nxe5 {[%clk 0:02:44.2]}
10. Bxe5 {[%clk 0:02:41.4]} 10... Nd7 {[%clk 0:02:35.9]} 11. Bf4 {[%clk
0:02:40.5]} 11... hxg5 {[%clk 0:02:30.8]} 12. hxg5 {[%clk 0:02:39.5]} 12... Bxc2
{[%clk 0:02:30.2]} 13. Qf3 {[%clk 0:02:32.7]} 13... Rxh1 {[%clk 0:02:25.9]} 14.
Qxh1 {[%clk 0:02:33.6]} 14... Bd6 {[%clk 0:02:20.4]} 15. Bxd6 {[%clk 0:02:29.7]}
15... cxd6 {[%clk 0:02:19.9]} 16. Qh8+ {[%clk 0:02:30.3]} 16... Ke7 {[%clk
0:02:16.8]} 17. Qxg7 {[%clk 0:02:29.8]} 17... Qh8 {[%clk 0:02:11.5]} 18. Qxh8
{[%clk 0:02:29.5]} 18... Rxh8 {[%clk 0:02:11.6]} 19. Kd2 {[%clk 0:02:29.7]}
19... Bg6 {[%clk 0:02:07.9]} 20. f4 {[%clk 0:02:21.1]} 20... Rh2+ {[%clk
0:02:06]} 21. Be2 {[%clk 0:02:21.4]} 21... Bh5 {[%clk 0:01:55.8]} 22. Kd3 {[%clk
0:02:17.1]} 22... Bxe2+ {[%clk 0:01:54.6]} 23. Nxe2 {[%clk 0:02:18]} 23... e5
{[%clk 0:01:54.4]} 24. Re1 {[%clk 0:02:01.1]} 24... f6 {[%clk 0:01:43.1]} 25.
gxf6+ {[%clk 0:01:58.5]} 25... Kxf6 {[%clk 0:01:41.7]} 26. Rf1 {[%clk
0:01:38.4]} 26... Ke6 {[%clk 0:01:39.5]} 27. b3 {[%clk 0:01:26.7]} 27... Nf6
{[%clk 0:01:35.8]} 28. fxe5 {[%clk 0:01:26.4]} 28... dxe5 {[%clk 0:01:34.5]} 29.
dxe5 {[%clk 0:01:26.5]} 29... Kxe5 {[%clk 0:01:27.9]} 30. Nd4 {[%clk 0:01:25.8]}
30... Ne4 {[%clk 0:01:26.5]} 31. Nf3+ {[%clk 0:01:24.9]} 1-0

[Event "Early-Titled-Tuesday-Blitz-June-18-2024"]
[Site "Chess.com"]
[Date "2024.06.18"]
[Round "1"]
[White "arctic_t00"]
[Black "Veleamater"]
[Result "1-0"]
[WhiteElo "2730"]
[BlackElo "2413"]
[TimeControl "180+1"]
[EndTime "8:04:35 PDT"]
[Termination "arctic_t00 won by resignation"]

1. d4 {[%clk 0:03:00.7]} 1... d6 {[%clk 0:02:59.7]} 2. Nf3 {[%clk 0:03:01.1]}
2... g6 {[%clk 0:02:59.5]} 3. c4 {[%clk 0:03:01.3]} 3... Bg7 {[%clk 0:03:00.2]}
4. Nc3 {[%clk 0:03:02]} 4... Nf6 {[%clk 0:03:00.9]} 5. g3 {[%clk 0:03:01.9]}
5... O-O {[%clk 0:03:01.5]} 6. Bg2 {[%clk 0:03:02.6]} 6... Nc6 {[%clk
0:03:02.2]} 7. d5 {[%clk 0:03:00.3]} 7... Nb8 {[%clk 0:03:01.5]} 8. O-O {[%clk
0:02:59]} 8... e5 {[%clk 0:03:01.5]} 9. dxe6 {[%clk 0:02:59]} 9... fxe6 {[%clk
0:02:59.6]} 10. h3 {[%clk 0:02:57.7]} 10... Nc6 {[%clk 0:02:59.3]} 11. Be3
{[%clk 0:02:54.8]} 11... e5 {[%clk 0:02:59.5]} 12. Qd2 {[%clk 0:02:53]} 12...
Be6 {[%clk 0:02:57.9]} 13. b3 {[%clk 0:02:52.6]} 13... Qd7 {[%clk 0:02:56.4]}
14. Ng5 {[%clk 0:02:48.3]} 14... Ne7 {[%clk 0:02:44.3]} 15. Nxe6 {[%clk
0:02:27.3]} 15... Qxe6 {[%clk 0:02:44.4]} 16. Rad1 {[%clk 0:02:01.3]} 16... Nc6
{[%clk 0:02:43.5]} 17. Nd5 {[%clk 0:01:58.2]} 17... Ne8 {[%clk 0:02:22.4]} 18.
Nb6 {[%clk 0:01:49.3]} 18... axb6 {[%clk 0:02:17.8]} 19. Bd5 {[%clk 0:01:48.9]}
19... Qxd5 {[%clk 0:02:15.3]} 20. cxd5 {[%clk 0:01:44.7]} 20... Ne7 {[%clk
0:02:13.2]} 21. a4 {[%clk 0:01:37.3]} 21... Nf6 {[%clk 0:02:11.8]} 22. Bg5
{[%clk 0:01:32.1]} 22... Nexd5 {[%clk 0:01:53.4]} 23. Qc2 {[%clk 0:01:32.3]}
23... Rf7 {[%clk 0:01:52.1]} 24. e4 {[%clk 0:01:23.3]} 24... Nb4 {[%clk
0:01:50.2]} 25. Qc4 {[%clk 0:01:23.5]} 25... h6 {[%clk 0:01:47.1]} 26. Bxf6
{[%clk 0:01:22.8]} 26... Bxf6 {[%clk 0:01:47.1]} 27. Qxb4 {[%clk 0:01:22.9]}
27... Kg7 {[%clk 0:01:45.1]} 28. Rc1 {[%clk 0:01:22.1]} 28... Raf8 {[%clk
0:01:44.5]} 29. Rc2 {[%clk 0:01:22.3]} 29... Bd8 {[%clk 0:01:44.5]} 30. Qc4
{[%clk 0:01:20.7]} 30... h5 {[%clk 0:01:44.7]} 31. Qd5 {[%clk 0:01:20.2]} 31...
Re7 {[%clk 0:01:41.3]} 32. Qxb7 {[%clk 0:01:18.8]} 32... Rf3 {[%clk 0:01:39]}
33. Qd5 {[%clk 0:01:19.1]} 33... Rxb3 {[%clk 0:01:37.5]} 34. Qxb3 {[%clk
0:01:18.7]} 1-0

[Event "Early-Titled-Tuesday-Blitz-June-18-2024"]
[Site "Chess.com"]
[Date "2024.06.18"]
[Round "1"]
[White "Fandorine"]
[Black "LeninGuerra"]
[Result "1-0"]
[WhiteElo "2969"]
[BlackElo "2529"]
[TimeControl "180+1"]
[EndTime "8:04:43 PDT"]
[Termination "Fandorine won by resignation"]

1. e4 {[%clk 0:02:59.1]} 1... c5 {[%clk 0:02:59.8]} 2. Nf3 {[%clk 0:02:58.9]}
2... e6 {[%clk 0:02:58.4]} 3. g3 {[%clk 0:02:58.5]} 3... b6 {[%clk 0:02:58.1]}
4. Bg2 {[%clk 0:02:45.3]} 4... Bb7 {[%clk 0:02:58.2]} 5. Nc3 {[%clk 0:02:38.8]}
5... d6 {[%clk 0:02:57.3]} 6. O-O {[%clk 0:02:37.8]} 6... Nd7 {[%clk 0:02:57.2]}
7. d4 {[%clk 0:02:37.7]} 7... cxd4 {[%clk 0:02:57.1]} 8. Nxd4 {[%clk 0:02:38.6]}
8... a6 {[%clk 0:02:57.6]} 9. Re1 {[%clk 0:02:38]} 9... Qc7 {[%clk 0:02:57.9]}
10. Nd5 {[%clk 0:02:32.7]} 10... exd5 {[%clk 0:02:57.9]} 11. exd5+ {[%clk
0:02:33.5]} 11... Ne5 {[%clk 0:02:56.5]} 12. f4 {[%clk 0:02:32.8]} 12... Nf6
{[%clk 0:02:56.8]} 13. Nc6 {[%clk 0:02:28.1]} 13... Bxc6 {[%clk 0:02:53]} 14.
dxc6 {[%clk 0:02:27.7]} 14... O-O-O {[%clk 0:02:53.5]} 15. fxe5 {[%clk
0:02:25.3]} 15... dxe5 {[%clk 0:02:54.4]} 16. Qe2 {[%clk 0:02:25.9]} 16... Bc5+
{[%clk 0:02:45.9]} 17. Be3 {[%clk 0:02:23.4]} 17... Bxe3+ {[%clk 0:02:43.9]} 18.
Qxe3 {[%clk 0:02:24.3]} 18... Kb8 {[%clk 0:02:39.2]} 19. Qxe5 {[%clk 0:02:20.7]}
19... Qxe5 {[%clk 0:02:32.8]} 20. Rxe5 {[%clk 0:02:21.6]} 20... Rhe8 {[%clk
0:02:33.3]} 21. Rxe8 {[%clk 0:02:07.8]} 21... Rxe8 {[%clk 0:02:32.3]} 22. c4
{[%clk 0:02:08.4]} 22... Kc7 {[%clk 0:02:32]} 23. b4 {[%clk 0:02:08.4]} 23...
Ne4 {[%clk 0:02:13.7]} 24. b5 {[%clk 0:01:58.6]} 24... axb5 {[%clk 0:02:07.9]}
25. cxb5 {[%clk 0:01:55]} 25... f5 {[%clk 0:02:08.1]} 26. Bxe4 {[%clk
0:01:40.6]} 26... fxe4 {[%clk 0:01:55.5]} 27. Rd1 {[%clk 0:01:38.6]} 27... Re7
{[%clk 0:01:53]} 28. Kf2 {[%clk 0:01:38.3]} 28... h6 {[%clk 0:01:53.3]} 29. Ke3
{[%clk 0:01:38.3]} 29... g5 {[%clk 0:01:53.8]} 30. g4 {[%clk 0:01:37.3]} 30...
Rf7 {[%clk 0:01:40.5]} 31. Rd7+ {[%clk 0:01:23.7]} 31... Rxd7 {[%clk 0:01:38.9]}
32. cxd7 {[%clk 0:01:24.6]} 32... Kxd7 {[%clk 0:01:39.3]} 33. Kxe4 {[%clk
0:01:25.5]} 33... Ke6 {[%clk 0:01:38.4]} 34. h3 {[%clk 0:01:25]} 34... Kd6
{[%clk 0:01:35.5]} 35. Kf5 {[%clk 0:01:25.3]} 35... Kc5 {[%clk 0:01:35.6]} 36.
Kg6 {[%clk 0:01:25.9]} 36... Kxb5 {[%clk 0:01:36]} 37. Kxh6 {[%clk 0:01:26.5]}
37... Ka4 {[%clk 0:01:36.6]} 38. Kxg5 {[%clk 0:01:26.9]} 38... Ka3 {[%clk
0:01:37.1]} 39. h4 {[%clk 0:01:27.4]} 39... Kxa2 {[%clk 0:01:37.4]} 40. h5
{[%clk 0:01:27.9]} 40... b5 {[%clk 0:01:38]} 41. h6 {[%clk 0:01:28.5]} 41... b4
{[%clk 0:01:38.9]} 42. h7 {[%clk 0:01:29.2]} 42... b3 {[%clk 0:01:39.8]} 43.
h8=Q {[%clk 0:01:29.8]} 43... b2 {[%clk 0:01:40.7]} 44. Qxb2+ {[%clk 0:01:30]}
44... Kxb2 {[%clk 0:01:41.6]} 45. Kf6 {[%clk 0:01:30.6]} 1-0

[Event "Early-Titled-Tuesday-Blitz-June-18-2024"]
[Site "Chess.com"]
[Date "2024.06.18"]
[Round "1"]
[White "bazar-wokzal"]
[Black "mfschulz"]
[Result "1-0"]
[WhiteElo "2603"]
[BlackElo "2235"]
[TimeControl "180+1"]
[EndTime "8:04:45 PDT"]
[Termination "bazar-wokzal won by checkmate"]

1. e4 {[%clk 0:03:00.9]} 1... g6 {[%clk 0:02:58.9]} 2. Nc3 {[%clk 0:02:59.1]}
2... Bg7 {[%clk 0:02:58.2]} 3. h4 {[%clk 0:02:57.8]} 3... h5 {[%clk 0:02:57.2]}
4. Nf3 {[%clk 0:02:56.2]} 4... d6 {[%clk 0:02:57.3]} 5. Ng5 {[%clk 0:02:56.5]}
5... f6 {[%clk 0:02:54.2]} 6. Nh3 {[%clk 0:02:55.4]} 6... e5 {[%clk 0:02:53.5]}
7. d4 {[%clk 0:02:51.5]} 7... Bxh3 {[%clk 0:02:52.6]} 8. Rxh3 {[%clk 0:02:50.4]}
8... exd4 {[%clk 0:02:50.4]} 9. Qxd4 {[%clk 0:02:50.5]} 9... Nc6 {[%clk
0:02:50.4]} 10. Qa4 {[%clk 0:02:33.9]} 10... Ne7 {[%clk 0:02:39.9]} 11. Be3
{[%clk 0:02:22]} 11... Qd7 {[%clk 0:02:39.2]} 12. O-O-O {[%clk 0:02:20.8]} 12...
a6 {[%clk 0:02:38.8]} 13. Rg3 {[%clk 0:02:10.6]} 13... O-O-O {[%clk 0:02:35.9]}
14. Bxa6 {[%clk 0:02:07.4]} 14... bxa6 {[%clk 0:02:25.1]} 15. Qxa6+ {[%clk
0:02:06.8]} 15... Kb8 {[%clk 0:02:24.8]} 16. Nb5 {[%clk 0:02:06.7]} 16... Qc8
{[%clk 0:02:19.8]} 17. Ba7+ {[%clk 0:01:38.9]} 17... Ka8 {[%clk 0:02:18.8]} 18.
Qa4 {[%clk 0:01:38.2]} 18... Kb7 {[%clk 0:02:07.8]} 19. Rb3 {[%clk 0:01:16.6]}
19... Qe6 {[%clk 0:01:57.8]} 20. Nd4+ {[%clk 0:01:08.6]} 20... Qxb3 {[%clk
0:01:56.2]} 21. Qxb3+ {[%clk 0:00:44.7]} 21... Kxa7 {[%clk 0:01:55.4]} 22. Nb5+
{[%clk 0:00:43.2]} 22... Kb8 {[%clk 0:01:40.1]} 23. Nxd6+ {[%clk 0:00:37.6]}
23... Ka8 {[%clk 0:01:40.1]} 24. Qb7# {[%clk 0:00:37.3]} 1-0